Cogmind - Beta 13 @@@ ROGUE MODE // 2024.05.18 @ 19:59:43 Player: Sherlockkat Result: Self-destructed Performance ------------- Evolutions (5) 2500 Regions Visited (15) 3000 Robots Destroyed (204) 1020 Value Destroyed (7848) 7848 Prototype IDs (31) 620 Alien Tech Used (0) 0 Bonus (3734) 3734 TOTAL SCORE: 18722 Bonus ------- High Alert Combat Kills 122 Follower Combat Kills 910 Met Data Miner 300 Met Warlord at Base 500 MAIN.C Attacked Warlord 500 Warlord Defense Kills 2114 Built Enhanced Grunts 300 A7 Reached Mainframe 300 Met R17 at Cetus 500 Friendly Fire -1812 Cogmind --------- Core Integrity 611/1000 Matter 91/300 Energy 315/350 System Corruption 2% Temperature Cool (-15) Movement Immobile (Siege) Ox1 Location -5/Warlord Parts ------- > --- POWER (2) -------- Quantum Reactor > --- PROPULSION (5) --- Armored Medium Treads Centrium Heavy Treads > --- UTILITY (7) ------ Advanced Cryofiber Web Advanced Heat Sink Huge Storage Unit Spectral Analyzer Advanced Terrain Scan Processor Advanced Targeting Computer Experimental Core Analyzer > --- WEAPON (3) ------- Vortex Driver Advanced KE Penetrator > --- INVENTORY (25) --- Vortex Chain Reactor Heavy Treads High-capacity Storage Unit Advanced Terrain Scanner Improved Target Analyzer Improved Medium Armor Plating Centrium Medium Armor Plating Centrium Medium Armor Plating System Mapper Advanced Variable Charge Gun Vortex Driver (30) Coil Gun KE Penetrator Advanced KE Penetrator Mass Driver Heavy Missile Launcher Katana Peak State ------------ > --- POWER ------------ Antimatter Reactor Quantum Reactor > --- PROPULSION ------- Armored Medium Treads Centrium Heavy Treads Centrium Heavy Treads > --- UTILITY ---------- Advanced Heat Sink Huge Storage Unit Enhanced Optical Array Advanced Terrain Scan Processor Advanced Targeting Computer Centrium Medium Armor Plating Advanced Shield Generator > --- WEAPON ----------- Advanced Variable Charge Gun Neutron Cannon Advanced KE Penetrator > --- INVENTORY -------- Vortex Chain Reactor Heavy Treads Advanced Cryofiber Web High-capacity Storage Unit Spectral Analyzer Advanced Terrain Scanner Improved Target Analyzer Experimental Core Analyzer Improved Medium Armor Plating Centrium Medium Armor Plating Centrium Medium Armor Plating System Mapper Vortex Driver Vortex Driver Coil Gun KE Penetrator Advanced KE Penetrator Advanced KE Penetrator Mass Driver Heavy Missile Launcher Thermoblaster Katana [Rating: 130] Favorites ----------- Power Quantum Reactor Engine Cooled Ion Engine Power Core Micro Nuclear Core Reactor Quantum Reactor Propulsion Light Treads Treads Light Treads Leg Carbon-fiber Leg Wheel Wheel Utility Huge Storage Unit Device Coolant Injector Storage Huge Storage Unit Processor Advanced Targeting Computer Hackware Hacking Suite Protection Improved Light Armor Plating Weapon Gauss Rifle Energy Gun Precision Beam Rifle Energy Cannon Neutron Cannon Ballistic Gun Gauss Rifle Ballistic Cannon Advanced Assault Cannon Launcher Thermoblaster Slashing Weapon Katana Build | -11 -10 -9 -8 -8 -7 -7 -7 -7 -6 -6 -6 -6 -5 -5 -5 ------- Run | Yrd Mat Mat Mat Sto Fac Low Low Dat Pro Fac Ext Cet Fac Upp War Slots Evolved 10 | . . 2 2 . 2 . . . . 2 . . 2 . . Power 1 | . . . . . . . . . . 1 . . . . . Propulsion 3 | . . 1 1 . 1 . . . . . . . . . . Utility 5 | . . 1 1 . 1 . . . . . . . 2 . . Weapon 1 | . . . . . . . . . . 1 . . . . . Parts Attached 174 | 6 5 13 16 12 25 5 5 3 7 8 10 14 17 5 23 Power 16 | 1 1 1 . 1 5 . . . 2 1 1 2 1 . . Engine 8 | 1 . 1 . 1 2 . . . 2 1 . . . . . Core 5 | . 1 . . . 3 . . . . . 1 . . . . Reactor 3 | . . . . . . . . . . . . 2 1 . . Propulsion 49 | 2 . 4 7 5 9 3 2 . . 5 4 3 3 1 1 Treads 37 | 2 . 4 7 5 9 . . . . 2 . 3 3 1 1 Leg 9 | . . . . . . 2 . . . 3 4 . . . . Wheel 3 | . . . . . . 1 2 . . . . . . . . Hover . | . . . . . . . . . . . . . . . . Flight . | . . . . . . . . . . . . . . . . Utility 55 | 1 2 4 5 1 8 1 . . 1 1 4 5 10 2 10 Device 23 | . . 1 1 . 4 . . . . 1 1 3 6 1 5 Storage 4 | 1 1 1 1 . . . . . . . . . . . . Processor 8 | . 1 . 1 . 2 . . . . . . . 1 1 2 Hackware 1 | . . . . . . . . . . . . . 1 . . Protection 19 | . . 2 2 1 2 1 . . 1 . 3 2 2 . 3 Artifact . | . . . . . . . . . . . . . . . . Weapon 54 | 2 2 4 4 5 3 1 3 3 4 1 1 4 3 2 12 Energy Gun 8 | . 1 1 1 1 . . . . . 1 . 1 . 1 1 Energy Cannon 6 | . . 1 . . . . . . . . . 1 1 . 3 Ballistic Gun 29 | 2 . 1 3 3 3 . 1 3 2 . 1 2 1 1 6 Ballistic Cannon 4 | . 1 1 . 1 . 1 . . . . . . . . . Launcher 6 | . . . . . . . 2 . 2 . . . . . 2 Special Weapon . | . . . . . . . . . . . . . . . . Impact Weapon . | . . . . . . . . . . . . . . . . Slashing Weapon 1 | . . . . . . . . . . . . . 1 . . Piercing Weapon . | . . . . . . . . . . . . . . . . Special Melee Weapon . | . . . . . . . . . . . . . . . . Unidentified Prototypes 21 | . . 2 3 1 1 1 . . . . 1 6 . . 6 Corrupted Parts 5 | . . . . . . . . . . . . 5 . . . System Corruption 32 | . . . . . . . . . . . . 32 . . . Parts Lost 49 | . 2 2 3 5 10 4 . . 5 2 4 1 4 . 7 Power 5 | . . . . 1 . . . . 1 . 1 . 1 . 1 Propulsion 23 | . 1 . 2 3 6 3 . . 2 2 2 . 1 . 1 Utility 13 | . . 1 1 . 3 . . . 2 . 1 . 2 . 3 Weapon 8 | . 1 1 . 1 1 1 . . . . . 1 . . 2 Highest Loss Streak 7 | . 2 2 1 2 3 2 . . 3 2 1 1 1 . 7 To Critical Strikes 2 | . . 1 . . . . . . . . 1 . . . . Average Slot Usage (%) 93 | . 86 99 99 99 99 95 96 76 85 89 95 88 87 88 87 Engine 4 | . 10 3 9 8 1 . . . 5 12 8 . . . . Core 2 | . 3 7 . . 5 7 7 7 1 . 3 . . . . Reactor 3 | . . . . . . . . . . . . 11 10 11 10 Treads 22 | . 28 32 35 35 37 17 15 15 8 13 1 16 16 17 16 Leg 4 | . . . . . . 10 9 . . 15 31 5 . . . Wheel 1 | . . . . . . 5 10 15 15 . . . . . . Device 10 | . . 10 9 9 14 15 15 15 15 5 6 7 13 11 10 Storage 7 | . 14 11 9 9 7 7 7 7 7 6 6 6 5 5 5 Processor 8 | . 1 2 9 9 7 7 7 7 7 6 6 6 10 16 17 Protection 7 | . . 8 8 9 7 7 7 7 7 6 8 11 6 5 4 Energy Gun 3 | . . 5 4 3 . . . . . 5 6 6 5 5 4 Energy Cannon 2 | . . 5 9 . . . . . . . . . 4 5 4 Ballistic Gun 9 | . 21 3 3 14 14 8 8 . 14 13 13 12 5 5 4 Ballistic Cannon 1 | . 6 7 . . . 5 5 . . . . . . . . Naked Turns . | . . . . . . . . . . . . . . . . Heaviest Build 153 | 12 20 41 100 102 101 104 105 101 105 106 121 145 153 149 152 Greatest Support 190 | 40 40 60 80 80 100 100 38 38 38 53 77 190 190 187 187 Greatest Overweight (x) 10 | . . . 1 1 1 10 10 2 3 3 2 2 1 . . Average Overweight (x) 1 | . . . . 1 . 8 5 2 2 1 1 . . . . Largest Inventory Capacity 25 | 8 10 15 25 25 25 25 25 25 25 25 25 25 25 25 25 Average Capacity 23 | 6 9 14 22 25 25 25 25 25 25 25 25 25 25 25 25 Most Carried 25 | 4 10 15 25 25 25 25 25 25 25 25 25 25 25 25 25 Average Carried 22 | 2 7 13 19 24 24 23 24 25 24 21 24 24 24 24 24 Final Capacity 25 | 8 10 15 25 25 25 25 25 25 25 25 25 25 25 25 25 Final Carried 25 | 4 9 15 25 25 25 24 25 25 25 22 25 25 23 24 19 Class Distribution -------------------- 34% | Scavenger-Mutant 24% | Mutant 15% | Scavenger-Tank 7% | Scavenger-Gunner 5% | Gunner 5% | Scavenger-Skirmisher 4% | Tank Dominant Class ---------------- Mutant | -10/Materials Mutant | -9/Materials Mutant | -8/Materials Scavenger-Mutant | -8/Storage Scavenger-Mutant | -7/Factory Scavenger-Mutant | -7/Lower Caves Scavenger-Mutant | -7/Lower Caves Scavenger-Mutant | -7/Data Miner Mutant | -6/Proximity Caves Gunner | -6/Factory Tank | -6/Extension Scavenger-Tank | -6/Cetus Scavenger-Tank | -5/Factory Scavenger-Skirmisher | -5/Upper Caves Scavenger-Gunner | -5/Warlord Resources | -11 -10 -9 -8 -8 -7 -7 -7 -7 -6 -6 -6 -6 -5 -5 -5 ----------- Run | Yrd Mat Mat Mat Sto Fac Low Low Dat Pro Fac Ext Cet Fac Upp War Matter Collected 4620 | 228 220 314 322 354 811 397 239 . 265 247 305 304 344 76 194 Remotely . | . . . . . . . . . . . . . . . . Salvage Created 9110 | . 452 740 1443 730 1169 598 192 . 333 583 579 248 1303 90 650 Parts 444 | . 15 41 74 44 61 20 4 . 16 33 31 14 62 1 28 Haulers Intercepted 12 | . 2 1 4 1 3 . . . . . . . 1 . . Recyclers Shooed 2 | . . . . . 2 . . . . . . . . . . Parts Field Recycled . | . . . . . . . . . . . . . . . . Retrieved Matter . | . . . . . . . . . . . . . . . . Parts Self-Destructed 40 | . . . . . . 20 6 . 14 . . . . . . Prevented . | . . . . . . . . . . . . . . . . Kills | -11 -10 -9 -8 -8 -7 -7 -7 -7 -6 -6 -6 -6 -5 -5 -5 ------- Run | Yrd Mat Mat Mat Sto Fac Low Low Dat Pro Fac Ext Cet Fac Upp War Combat Hostiles Destroyed 157 | . 9 15 24 14 18 12 5 . 9 7 9 1 19 . 15 Guns 87 | . 7 . 14 13 18 4 . . 3 7 9 1 8 . 3 Cannons 47 | . 2 15 10 1 . 8 . . . . . . 8 . 3 AOE 22 | . . . . . . . 5 . 6 . . . 2 . 9 Classes Destroyed 19 | . 3 3 5 1 1 2 . . . . 2 . . . 2 Worker 7 | . . . 1 2 1 . . . . . . . 3 . . Builder 7 | . . . . 1 . . . . . 4 . . 2 . . Tunneler 2 | . . . 1 . . . . . . 1 . . . . . Hauler 12 | . 2 1 4 1 3 . . . . . . . 1 . . Recycler 8 | . 1 . 3 . 2 . . . . 1 . . 1 . . Minesweeper 1 | . . . . . . 1 . . . . . . . . . Operator 3 | . . 1 1 . . . . . . 1 . . . . . Watcher 4 | . . . 1 . . . . . . 1 . . 2 . . Swarmer 31 | . . . 7 4 4 2 3 . 7 4 . . . . . Grunt 72 | . 9 11 9 5 8 6 2 . 2 2 3 . 5 . 10 Brawler 4 | . . 1 2 . . 1 . . . . . . . . . Duelist 4 | . . . 1 . . 2 . . . 1 . . . . . Sentry 23 | . . 3 5 5 3 1 . . . . 4 . 2 . . Hunter 5 | . . . . . . . . . . . 1 . 4 . . Programmer 12 | . . . . . 3 . . . . . . . 8 . 1 Behemoth 1 | . . . . . . . . . . . 1 . . . . Cetus Guard 1 | . . . . . . . . . . . . 1 . . . Enhanced Grunt 2 | . . . . . . . . . . . . 2 . . . Striker 1 | . . . . . . . . . . . . . . . 1 Executioner 3 | . . . . . . . . . . . . . . . 3 Packrat 1 | . . . . . . 1 . . . . . . . . . Samaritan 5 | . . . . . . 1 2 . . . . . . 2 . Thug 1 | . . . . . . . . . . . . 1 . . . Best Kill Streak 6 | . 2 6 6 4 5 6 3 . 4 5 3 1 6 . 3 Combat Bots Only 6 | . 2 6 5 4 5 6 3 . 4 3 3 1 3 . 3 Max Kills in Single Turn 6 | . 1 1 2 1 1 1 2 . 2 4 1 1 6 1 2 Gunslinging . | . . . . . . . . . . . . . . . . Exploded 2 | . . . . . . . 2 . 2 . . . 2 . 2 Melee . | . . . . . . . . . . . . . . . . Uniques/NPCs Destroyed . | . . . . . . . . . . . . . . . . Combat | -11 -10 -9 -8 -8 -7 -7 -7 -7 -6 -6 -6 -6 -5 -5 -5 -------- Run | Yrd Mat Mat Mat Sto Fac Low Low Dat Pro Fac Ext Cet Fac Upp War Hostile Shots Fired 1103 | . 72 55 107 61 286 50 11 . 44 31 95 12 120 . 159 Missed 259 | . 22 17 30 13 70 10 3 . 5 11 25 2 22 . 29 Damage Taken 11785 | . 623 504 1096 655 1638 635 107 . 593 410 755 239 1591 . 2939 Core 1251 | . 156 88 125 24 94 84 8 . 77 51 92 63 156 . 233 Absorbed by Shields 2163 | . . . . . 799 144 32 . 108 . 8 76 574 . 422 Reduced by Siege Mode 267 | . . . . . . . . . . . . . . . 267 Ignored by Resistances 118 | . . 60 58 . . . . . . . . . . . . Regen/Repaired (Parts) 97 | . . . . . . . . . . . . . . . 97 Core Remaining (%) 70 | 100 37 78 . 72 . . . . 62 . . 75 . . . Volleys Fired 567 | . 66 38 83 42 91 40 16 . 16 22 30 20 51 2 50 Largest 3 | . 2 2 2 2 2 2 2 . 2 3 3 3 3 3 3 Hottest 260 | . 75 103 129 93 48 71 71 . 56 117 119 179 179 203 260 Shots Fired 1198 | . 132 76 166 83 181 82 28 . 30 64 90 56 121 6 83 Gun 865 | . 96 32 65 79 181 52 11 . 27 64 90 47 72 4 45 Cannon 299 | . 36 44 101 4 . 30 11 . . . . 9 49 2 13 Launcher 34 | . . . . . . . 6 . 3 . . . . . 25 Special . | . . . . . . . . . . . . . . . . Kinetic 800 | . 131 38 42 69 181 82 22 . 27 44 60 30 37 2 35 Thermal 368 | . . 29 124 3 . . . . . 20 30 26 84 4 48 Explosive 9 | . . . . . . . 6 . 3 . . . . . . Electromagnetic 21 | . 1 9 . 11 . . . . . . . . . . . Robot Hit Streak 29 | . 7 17 17 29 20 23 24 . 17 11 15 14 28 19 9 Robot Miss Streak 4 | . 3 2 3 2 2 1 1 . 1 2 2 2 1 . 4 Penetration Max 1 | . . . . . . . . . . . 1 . 1 . 1 Secondary Targets 7 | . 1 . . 1 3 . . . . . 1 1 . . . Max Gunslinging Chain 1 | . 1 . . 1 1 . . . . . 1 1 . . . Shots Hit Robots 896 | . 87 59 114 61 147 70 22 . 25 47 70 43 94 5 52 Core Hits 405 | . 30 25 50 33 54 30 13 . 13 28 20 23 43 4 39 Critical Kills 5 | . 1 . . . 2 . . . . . . . 2 . . Critical Parts Destroyed 6 | . . . . . . . . . 1 . 2 . 1 . 2 Critical Strikes 31 | . 3 . 2 1 2 5 . . 1 2 7 1 5 . 2 Burn 12 | . . . 2 . . . . . . 2 5 1 2 . . Destroy 12 | . 1 . . 1 2 . . . 1 . 2 . 3 . 2 Blast 7 | . 2 . . . . 5 . . . . . . . . . Melee Attacks 3 | . . . . . . . . . . . . . 3 . . Impact . | . . . . . . . . . . . . . . . . Slashing 3 | . . . . . . . . . . . . . 3 . . Piercing . | . . . . . . . . . . . . . . . . Sneak Attacks 1 | . . . . . . . . . . . . . 1 . . Combat Hostiles . | . . . . . . . . . . . . . . . . Follow-up Attacks . | . . . . . . . . . . . . . . . . Damage Inflicted 20892 | . 993 903 2157 1027 2408 1336 885 . 983 1175 1434 865 3702 136 2888 Guns 11560 | . 532 309 939 987 2408 653 142 . 399 915 1434 734 1238 65 805 Cannons 5019 | . 461 594 1213 40 . 683 197 . . . . 131 1330 71 299 Explosions 4246 | . . . . . . . 546 . 576 260 . . 1080 . 1784 Melee 54 | . . . . . . . . . . . . . 54 . . Ramming 13 | . . . 5 . . . . . 8 . . . . . . Kinetic 10614 | . 981 377 524 774 2408 1336 339 . 399 647 931 536 635 28 699 Thermal 8199 | . . 390 1628 40 . . . . . 268 503 329 2910 108 2023 Explosive 1288 | . . . . . . . 546 . 576 . . . . . 166 Electromagnetic 724 | . 12 136 . 213 . . . . . 260 . . 103 . . Impact . | . . . . . . . . . . . . . . . . Slashing 54 | . . . . . . . . . . . . . 54 . . Piercing . | . . . . . . . . . . . . . . . . Highest Corruption 32 | . . 4 . 1 4 4 4 4 4 . . 32 7 7 7 Average Corruption 4 | . . 4 . 1 2 4 4 4 4 . . 20 3 7 6 Corruption Purged . | . . . . . . . . . . . . . . . . Corruption Blocked . | . . . . . . . . . . . . . . . . Effects 133 | . . 3 . 8 27 20 10 4 10 . . 24 22 4 1 Message Errors 34 | . . 2 . 5 4 4 4 1 1 . . 7 6 . . Matter Fused 26 | . . 1 . 2 3 4 2 . 2 . . 4 6 2 . Heat Flow Errors 15 | . . . . . 6 1 2 1 2 . . 2 1 . . Energy Discharges 21 | . . . . . 4 3 1 . 3 . . 5 3 1 1 Parts Rejected 3 | . . . . . 1 . . . . . . . 2 . . Parts Fused 1 | . . . . . 1 . . . . . . . . . . Data Loss (minor) 13 | . . . . . 5 3 . 1 1 . . 1 1 1 . Data Loss (major) 7 | . . . . 1 2 1 . 1 . . . 1 1 . . Misfires 4 | . . . . . . 2 1 . 1 . . . . . . Alerts 4 | . . . . . . 2 . . . . . . 2 . . Weapon Failures 5 | . . . . . 1 . . . . . . 4 . . . Overload Shots . | . . . . . . . . . . . . . . . . Overflow Damage 543 | . . . . . . 24 86 . 64 . . . 361 . 8 Projectiles 142 | . . . . . . 24 69 . . . . . 49 . . Explosions 387 | . . . . . . . 17 . 64 . . . 298 . 8 Melee 14 | . . . . . . . . . . . . . 14 . . Knockbacks 10 | . 5 1 1 . . 3 . . . . . . . . . Impact . | . . . . . . . . . . . . . . . . Kinetic 10 | . 5 1 1 . . 3 . . . . . . . . . Secondary . | . . . . . . . . . . . . . . . . Self-Inflicted Damage 198 | . . . . . . . . . 4 7 . . 187 . . Shots 6 | . . . . . . . . . . 1 . . 5 . . Rammed 2 | . . . 1 . . . . . 1 . . . . . . Targets Rammed 2 | . . . 1 . . . . . 1 . . . . . . Kicked . | . . . . . . . . . . . . . . . . Crushed . | . . . . . . . . . . . . . . . . Highest Temperature 584 | . 117 25 59 33 195 179 196 179 181 296 199 323 301 96 584 Average Temperature 87 | . 33 9 16 21 81 20 71 91 49 113 98 100 97 51 159 Received Heat Transfer 3335 | . 375 246 540 252 420 174 35 . 235 63 246 27 114 . 608 Effects 17 | . . . . . . . . . . 1 . . 1 . 15 Shutdowns 2 | . . . . . . . . . . . . . . . 2 Energy Bleed 4 | . . . . . . . . . . 1 . . 1 . 2 Interference 2 | . . . . . . . . . . . . . . . 2 Matter Decay 1 | . . . . . . . . . . . . . . . 1 Damage (major) 8 | . . . . . . . . . . . . . . . 8 Siege Activations 1 | . . . . . . . . . . . . . . . 1 Total Turns 42 | . . . . . . . . . . . . . . . 42 Longest Duration 42 | . . . . . . . . . . . . . . . 42 Robots Corrupted . | . . . . . . . . . . . . . . . . Combat Hostiles . | . . . . . . . . . . . . . . . . Parts Fried 4 | . . 1 . . . . . . . 2 . . 1 . . Impact Corruptions . | . . . . . . . . . . . . . . . . Robots Melted 1 | . . . . . . . . . . . . . 1 . . Combat Hostiles 1 | . . . . . . . . . . . . . 1 . . Parts Melted 14 | . . . 5 . . . . . . 3 3 . 2 . 1 Heat Transferred 11059 | . . 703 3330 74 . . . . . 740 1443 629 1995 74 2071 Parts Sabotaged . | . . . . . . . . . . . . . . . . Parts Stolen . | . . . . . . . . . . . . . . . . Parts Stripped . | . . . . . . . . . . . . . . . . Power Chain Reactions 2 | . . . . . . . . . . 1 . . 1 . . Alert | -11 -10 -9 -8 -8 -7 -7 -7 -7 -6 -6 -6 -6 -5 -5 -5 ------- Run | Yrd Mat Mat Mat Sto Fac Low Low Dat Pro Fac Ext Cet Fac Upp War Peak Influence 542 | . 176 262 418 490 312 . . . . 343 268 161 542 . . Initial 210 | . . 25 110 165 210 . . . . . 70 12 55 . . Average 192 | . 79 115 278 338 169 . . . . 127 91 116 257 . . Maximum Alert Level 2 | . . 1 2 2 1 . . . . 1 1 . 2 . . Low Security (%) 54 | 100 100 71 18 5 51 . . . . 88 96 100 32 . . Level 1 38 | . . 28 80 58 48 . . . . 11 3 . 44 . . Level 2 7 | . . . 1 36 . . . . . . . . 23 . . Level 3 . | . . . . . . . . . . . . . . . . Level 4 . | . . . . . . . . . . . . . . . . Level 5 . | . . . . . . . . . . . . . . . . High Security . | . . . . . . . . . . . . . . . . Max Security . | . . . . . . . . . . . . . . . . Squads Dispatched 19 | . 2 1 . 1 6 . . . . 1 1 . 7 . . Investigation 2 | . 1 . . . . . . . . 1 . . . . . Extermination 7 | . . . . . 3 . . . . . . . 4 . . Reinforcement 8 | . 1 1 . 1 3 . . . . . 1 . 1 . . Assault 2 | . . . . . . . . . . . . . 2 . . Garrison . | . . . . . . . . . . . . . . . . Intercept . | . . . . . . . . . . . . . . . . Searches Triggered . | . . . . . . . . . . . . . . . . Construction Impeded . | . . . . . . . . . . . . . . . . Haulers Reinforced 2 | . . . . . 2 . . . . . . . . . . Active Scanning Responses . | . . . . . . . . . . . . . . . . Cargo Convoy Interrupts . | . . . . . . . . . . . . . . . . Stealth | -11 -10 -9 -8 -8 -7 -7 -7 -7 -6 -6 -6 -6 -5 -5 -5 --------- Run | Yrd Mat Mat Mat Sto Fac Low Low Dat Pro Fac Ext Cet Fac Upp War Distress Signals 16 | . 1 4 2 1 . . . . . . 2 2 1 . 3 Communications Jammed . | . . . . . . . . . . . . . . . . Distress Signals . | . . . . . . . . . . . . . . . . Times Spotted 287 | . 18 18 39 16 27 15 5 . 12 12 22 10 25 . 68 Peak Tracking Total 13 | . 5 8 5 4 7 7 3 . 4 5 5 5 4 . 13 Tactical Retreats 12 | . . . . 2 3 5 . . . 1 . . . . 1 Traps | -11 -10 -9 -8 -8 -7 -7 -7 -7 -6 -6 -6 -6 -5 -5 -5 ------- Run | Yrd Mat Mat Mat Sto Fac Low Low Dat Pro Fac Ext Cet Fac Upp War Traps Triggered 7 | . 1 . . 2 1 . . . . . 1 . 2 . . Indirectly . | . . . . . . . . . . . . . . . . Trap Hack Attempts . | . . . . . . . . . . . . . . . . Triggered . | . . . . . . . . . . . . . . . . Disarmed . | . . . . . . . . . . . . . . . . Reprogrammed . | . . . . . . . . . . . . . . . . Reused . | . . . . . . . . . . . . . . . . Traps Extracted . | . . . . . . . . . . . . . . . . Installed . | . . . . . . . . . . . . . . . . Triggered 28 | . . . . . . . 1 . 1 . . . . . 26 Machines | -11 -10 -9 -8 -8 -7 -7 -7 -7 -6 -6 -6 -6 -5 -5 -5 ---------- Run | Yrd Mat Mat Mat Sto Fac Low Low Dat Pro Fac Ext Cet Fac Upp War Machines Disabled 29 | . . 2 3 2 . . . . . 5 1 . 15 . 1 Max in Single Turn 6 | . . 2 1 1 . . . . . 4 1 . 6 . 1 Garrison Access 2 | . . . . . . . . . . . . . 2 . . Machines Repaired . | . . . . . . . . . . . . . . . . Machines Dismantled . | . . . . . . . . . . . . . . . . Machines Sabotaged . | . . . . . . . . . . . . . . . . Overloaded Fab Kills . | . . . . . . . . . . . . . . . . Hacking | -11 -10 -9 -8 -8 -7 -7 -7 -7 -6 -6 -6 -6 -5 -5 -5 --------- Run | Yrd Mat Mat Mat Sto Fac Low Low Dat Pro Fac Ext Cet Fac Upp War Machines Accessed 25 | . . . 4 3 1 . . 4 . 1 . 3 8 . 1 Terminals 13 | . . . 3 3 1 . . . . 1 . 3 2 . . Fabricators 1 | . . . . . . . . . . . . . 1 . . Repair Stations 2 | . . . . . . . . . . . . . 2 . . Recycling Units 1 | . . . . . . . . . . . . . 1 . . Scanalyzers . | . . . . . . . . . . . . . . . . Garrison Access 3 | . . . 1 . . . . . . . . . 2 . . Total Hacks 71 | . . . 7 6 3 . . 32 . 3 . 4 15 . 1 Successful 48 | . . . 1 2 . . . 32 . 1 . 2 9 . 1 Failed 23 | . . . 6 4 3 . . . . 2 . 2 6 . . Catastrophic 5 | . . . . 2 2 . . . . . . 1 . . . Database Lockouts . | . . . . . . . . . . . . . . . . Manual 12 | . . . . 4 3 . . . . . . 1 3 . 1 Terminals 23 | . . . 5 6 3 . . . . 3 . 4 2 . . Fabricators 1 | . . . . . . . . . . . . . 1 . . Repair Stations 5 | . . . . . . . . . . . . . 5 . . Recycling Units 4 | . . . . . . . . . . . . . 4 . . Scanalyzers . | . . . . . . . . . . . . . . . . Garrison Access 5 | . . . 2 . . . . . . . . . 3 . . Terminal Hacks 39 | . . . 1 1 . . . 32 . 1 . 2 1 . 1 Record 12 | . . . . . . . . 11 . . . 1 . . . Part Schematic 12 | . . . . . . . . 12 . . . . . . . Robot Schematic 6 | . . . . . . . . 6 . . . . . . . Prototype ID Bank 3 | . . . . . . . . 3 . . . . . . . Open Door 3 | . . . . . . . . . . 1 . 1 . . 1 Locate Traps 1 | . . . . . . . . . . . . . 1 . . Zone Layout 2 | . . . 1 1 . . . . . . . . . . . Fabricator Hacks . | . . . . . . . . . . . . . . . . Repair Station Hacks 3 | . . . . . . . . . . . . . 3 . . Scan Component 2 | . . . . . . . . . . . . . 2 . . Repair 1 | . . . . . . . . . . . . . 1 . . Recycling Unit Hacks 1 | . . . . . . . . . . . . . 1 . . Retrieve Matter 1 | . . . . . . . . . . . . . 1 . . Scanalyzer . | . . . . . . . . . . . . . . . . Garrison Access Hacks 2 | . . . . . . . . . . . . . 2 . . Seal Access 2 | . . . . . . . . . . . . . 2 . . Unauthorized Hacks 3 | . . . . 1 . . . . . . . . 2 . . Terminals 1 | . . . . 1 . . . . . . . . . . . Track 1 | . . . . 1 . . . . . . . . . . . Fabricators . | . . . . . . . . . . . . . . . . Repair Stations . | . . . . . . . . . . . . . . . . Recycling Units 2 | . . . . . . . . . . . . . 2 . . Monitor 1 | . . . . . . . . . . . . . 1 . . Recyclers 1 | . . . . . . . . . . . . . 1 . . Scanalyzers . | . . . . . . . . . . . . . . . . Garrison Access . | . . . . . . . . . . . . . . . . Data Cores Recovered 3 | . . . 1 . . . . . . 1 1 . . . . Used . | . . . . . . . . . . . . . . . . Hacking Detections 17 | . . . 3 3 1 . . . . 1 . 2 7 . . Full Trace Events 1 | . . . . . . . . . . 1 . . . . . Feedback Events . | . . . . . . . . . . . . . . . . Feedback Blocked . | . . . . . . . . . . . . . . . . Robot Schematics Acquired 6 | . . . . . . . . 6 . . . . . . . Robots Built . | . . . . . . . . . . . . . . . . Authchips . | . . . . . . . . . . . . . . . . Time . | . . . . . . . . . . . . . . . . Total Robot Build Rating . | . . . . . . . . . . . . . . . . Part Schematics Acquired 12 | . . . . . . . . 12 . . . . . . . Parts Built . | . . . . . . . . . . . . . . . . Authchips . | . . . . . . . . . . . . . . . . Time . | . . . . . . . . . . . . . . . . Total Part Build Rating . | . . . . . . . . . . . . . . . . Parts Repaired . | . . . . . . . . . . . . . . . . Time 108 | . . . . . . . . . . . . . 108 . . Parts Recycled . | . . . . . . . . . . . . . . . . Recycled Matter . | . . . . . . . . . . . . . . . . Retrieved Matter . | . . . . . . . . . . . . . . . . Retrieved Components . | . . . . . . . . . . . . . . . . Parts Scanalyzed . | . . . . . . . . . . . . . . . . Part Schematics Acquired . | . . . . . . . . . . . . . . . . Parts Damaged . | . . . . . . . . . . . . . . . . Bothacking | -11 -10 -9 -8 -8 -7 -7 -7 -7 -6 -6 -6 -6 -5 -5 -5 ------------ Run | Yrd Mat Mat Mat Sto Fac Low Low Dat Pro Fac Ext Cet Fac Upp War Used RIF Installer . | . . . . . . . . . . . . . . . . Robots Hacked . | . . . . . . . . . . . . . . . . Non-combat . | . . . . . . . . . . . . . . . . Combat . | . . . . . . . . . . . . . . . . Robot Hacks Applied . | . . . . . . . . . . . . . . . . Relay Couplers Released . | . . . . . . . . . . . . . . . . Fabnet Peak Effective % . | . . . . . . . . . . . . . . . . Robots Rewired 7 | . . . . . . . . . . . 7 . . . . Allies Hacked . | . . . . . . . . . . . . . . . . Hacks Repelled . | . . . . . . . . . . . . . . . . Allies | -11 -10 -9 -8 -8 -7 -7 -7 -7 -6 -6 -6 -6 -5 -5 -5 -------- Run | Yrd Mat Mat Mat Sto Fac Low Low Dat Pro Fac Ext Cet Fac Upp War Total Allies 21 | . . . . . . . . . . . 16 5 . . . Largest Group 12 | . . . . . . . . . . . 8 12 . . . Highest-Rated Group 794 | . . . . . . . . . . . 359 794 . . . Highest-Rated Ally 159 | . . . . . . . . . . . 159 159 . . . Total Orders . | . . . . . . . . . . . . . . . . Ally Attacks 163 | . . . . . . . . . . . 61 102 . . . Total Damage 3815 | . . . . . . . . . . . 1265 2550 . . . Kills 18 | . . . . . . . . . . . 9 9 . . . Allies Corrupted . | . . . . . . . . . . . . . . . . Allies Melted . | . . . . . . . . . . . . . . . . Intel | -11 -10 -9 -8 -8 -7 -7 -7 -7 -6 -6 -6 -6 -5 -5 -5 ------- Run | Yrd Mat Mat Mat Sto Fac Low Low Dat Pro Fac Ext Cet Fac Upp War Robot Analysis Total . | . . . . . . . . . . . . . . . . Derelict Logs Recovered 1 | . . . . . . . . . 1 . . . . . . Drone Launches . | . . . . . . . . . . . . . . . . Drone Recoveries . | . . . . . . . . . . . . . . . . Exploration | -11 -10 -9 -8 -8 -7 -7 -7 -7 -6 -6 -6 -6 -5 -5 -5 ------------- Run | Yrd Mat Mat Mat Sto Fac Low Low Dat Pro Fac Ext Cet Fac Upp War Turns Passed 12764 | 98 620 539 1773 796 1714 1011 369 116 472 597 1139 601 1504 162 1253 Spaces Moved 5596 | 55 255 230 658 268 716 374 182 93 334 223 496 285 717 79 631 Core 2 | 2 . . . . . . . . . . . . . . . Treads 4145 | 53 255 230 658 268 716 57 . . . 199 36 246 717 79 631 Legs 499 | . . . . . . . . . . . 460 39 . . . Wheels 950 | . . . . . . 317 182 93 334 24 . . . . . Hover . | . . . . . . . . . . . . . . . . Flight . | . . . . . . . . . . . . . . . . Fastest Speed 50 | 50 160 160 160 240 160 230 120 120 120 145 192 160 160 163 163 Average Speed 181 | 156 160 160 214 240 181 231 173 120 120 229 195 165 161 163 163 Slowest Speed 263 | 160 160 160 240 240 240 240 230 120 145 240 263 262 245 163 163 Overloaded Moves . | . . . . . . . . . . . . . . . . Propulsion Burnouts . | . . . . . . . . . . . . . . . . Robots Hopped . | . . . . . . . . . . . . . . . . Cave-ins Triggered . | . . . . . . . . . . . . . . . . Exploration Rate (%) 46 | 5 54 26 75 49 22 53 46 68 64 7 73 86 21 13 81 Regions Visited 15 Branch Regions 9 Pre-discovered Areas 1 | . . . . . . . . 1 . . . . . . . Known Exits Taken 1 | . . . . . 1 . . . . . . . . . . Unknown Exits Taken 14 | 1 1 1 1 1 . 1 1 1 1 1 1 1 1 1 . Scrap Searched 9 | . . . . . . 3 3 . 2 . . . . 1 . Spaces Dug 4 | . . . . . . . . . . . . . 4 . . Terrain Destroyed 303 | . . . . . . 1 92 . 24 17 1 3 80 . 85 Melee 1 | . . . . . . . . . . . . . 1 . . Projectile 43 | . . . . . . 1 3 . . 2 1 3 10 . 23 AOE 259 | . . . . . . . 89 . 24 15 . . 69 . 62 Terrain Rammed . | . . . . . . . . . . . . . . . . Walls Destroyed . | . . . . . . . . . . . . . . . . Machines Disabled . | . . . . . . . . . . . . . . . . Actions | -11 -10 -9 -8 -8 -7 -7 -7 -7 -6 -6 -6 -6 -5 -5 -5 --------- Run | Yrd Mat Mat Mat Sto Fac Low Low Dat Pro Fac Ext Cet Fac Upp War Total 7128 | 64 354 331 864 352 972 439 207 97 373 258 599 374 957 108 779 Wait 532 | . 20 24 72 19 117 17 . . 11 4 17 22 149 16 44 Move 5582 | 54 254 229 657 267 715 373 181 92 334 222 495 284 716 78 631 Hop . | . . . . . . . . . . . . . . . . Pick Up 121 | 4 6 16 21 6 13 2 1 . 3 2 7 14 13 3 10 Fast Attach 53 | 6 2 2 4 3 7 2 1 2 . 3 6 4 2 . 9 Attach 60 | . 1 5 5 6 10 3 1 . 2 5 2 2 9 2 7 Detach 13 | . 1 1 1 1 1 1 2 . . . 1 1 1 . 2 Swap 62 | . 2 6 7 3 8 1 3 1 5 . 2 8 6 3 7 Drop 101 | . 2 10 13 5 10 . 2 2 1 . 7 19 7 4 19 Fire 567 | . 66 38 83 42 91 40 16 . 16 22 30 20 51 2 50 Melee 3 | . . . . . . . . . . . . . 3 . . Ram . | . . . . . . . . . . . . . . . . Kick . | . . . . . . . . . . . . . . . . Crush 1 | . . . 1 . . . . . . . . . . . . Escape Stasis 5 | . . . . . . . . . . . 5 . . . . Rewire 28 | . . . . . . . . . 1 . 27 . . . . Trap . | . . . . . . . . . . . . . . . . Miscellaneous . | . . . . . . . . . . . . . . . . Route ------- -11/Scrapyard -10/Materials -9/Materials -8/Materials (discovered 2 exits: *Fac / *Sto) -8/Storage -7/Factory (discovered 2 exits: *Fac / *Low) -7/Lower Caves (discovered 2 exits: [*Low] / *Dat) -7/Lower Caves -7/Data Miner -6/Proximity Caves -6/Factory -6/Extension (discovered 2 exits: *Fac / *Cet) -6/Cetus (discovered 2 exits: *Fac / [*Arc]) -5/Factory -5/Upper Caves -5/Warlord History --------- Turn | Location | Event 9 | -11/Scrapyard | Discovered new exit (range 15) 99 | -11/Scrapyard | Entered Materials 309 | -10/Materials | Build established: Mutant 511 | -10/Materials | Core integrity fell below 50% 700 | -10/Materials | Discovered new exit (range 9) 719 | -10/Materials | Entered another Materials area 719 | -9/Materials | Evolved 2 slots: Propulsion x1, Utility x1 1214 | -9/Materials | Discovered new exit (range 8) 1258 | -9/Materials | Entered another Materials area 1258 | -8/Materials | Evolved 2 slots: Propulsion x1, Utility x1 2983 | -8/Materials | Discovered new exit (range 15) 2983 | -8/Materials | Discovered new exit (range 7) 3031 | -8/Materials | Entered Storage 3039 | -8/Storage | Build established: Scavenger-Mutant 3796 | -8/Storage | Discovered new exit (range 8) 3827 | -8/Storage | Entered Factory 3827 | -7/Factory | Evolved 2 slots: Propulsion x1, Utility x1 5319 | -7/Factory | Lost 3 parts (1n2u) 5416 | -7/Factory | Discovered new exit (range 10) 5490 | -7/Factory | Lost 3 parts (3n) 5528 | -7/Factory | Discovered new exit (range 10) 5541 | -7/Factory | Identified exit to Lower Caves 5541 | -7/Factory | Entered Lower Caves 5759 | -7/Lower Caves | A Derelict revealed a hidden shortcut to meet someone special 6365 | -7/Lower Caves | Attracted the attention of an 0b10 outpost 6529 | -7/Lower Caves | Discovered new exit (range 5) 6552 | -7/Lower Caves | Entered another Lower Caves area 6910 | -7/Lower Caves | Discovered new exit (range 10) 6921 | -7/Lower Caves | Entered Data Miner 6924 | -7/Data Miner | Discovered new exit (range 6) 6947 | -7/Data Miner | Met Data Miner 6971 | -7/Data Miner | Learned location of Section 7 (-2) 6971 | -7/Data Miner | Acquired the access code to Warlord's prototype stash 6991 | -7/Data Miner | Received God Mode back door access code from Data Miner 7037 | -7/Data Miner | Entered Proximity Caves 7110 | -6/Proximity Caves | Learned location of 1 exit from Lower Caves 7159 | -6/Proximity Caves | Lost 3 parts (1p1n1u) 7426 | -6/Proximity Caves | Build established: Mutant 7500 | -6/Proximity Caves | Discovered new exit (range 5) 7509 | -6/Proximity Caves | Entered Factory 7509 | -6/Factory | Evolved 2 slots: Power x1, Weapon x1 7536 | -6/Factory | Spotted B-75 Beast 7884 | -6/Factory | Build established: Gunner 8096 | -6/Factory | Discovered new exit (range 6) 8106 | -6/Factory | Entered Extension 8518 | -6/Extension | Build established: Scavenger-Gunner 8592 | -6/Extension | Rescued a captive Derelict 8593 | -6/Extension | Rescued a captive Derelict 8658 | -6/Extension | Rescued A7 8701 | -6/Extension | Spotted B-75 Beast 8708 | -6/Extension | Spotted B-75 Beast 8728 | -6/Extension | Destroyed B-75 Beast 8734 | -6/Extension | Allies destroyed B-75 Beast 8762 | -6/Extension | Lost 7 allies 8789 | -6/Extension | Rescued a captive Derelict 8931 | -6/Extension | Rescued a captive Derelict 8962 | -6/Extension | Rescued a captive Derelict 8963 | -6/Extension | Rescued a captive Derelict 9044 | -6/Extension | Build established: Tank 9122 | -6/Extension | Rescued a captive Derelict 9123 | -6/Extension | Rescued a captive Derelict 9189 | -6/Extension | Discovered new exit (range 10) 9191 | -6/Extension | Discovered new exit (range 6) 9245 | -6/Extension | Entered Cetus 9245 | -6/Cetus | Accompanied by 7 allies (A7) 9250 | -6/Cetus | Acquired a Cetus Manufacturing Module code from A7 9271 | -6/Cetus | Spotted Cetus Guard 9271 | -6/Cetus | Spotted Cetus Guard 9276 | -6/Cetus | Spotted Cetus Guard 9280 | -6/Cetus | Spotted Cetus Guard 9287 | -6/Cetus | Allies destroyed Cetus Guard 9290 | -6/Cetus | Allies destroyed Cetus Guard 9293 | -6/Cetus | Allies destroyed Cetus Guard 9299 | -6/Cetus | Allies destroyed Cetus Guard 9344 | -6/Cetus | System corruption reached 10% 9400 | -6/Cetus | Started Cetus Manufacturing Module 9412 | -6/Cetus | Escorted A7 to Cetus Mainframe 9425 | -6/Cetus | Manufactured an Enhanced Grunt 9450 | -6/Cetus | Manufactured an Enhanced Grunt 9475 | -6/Cetus | Manufactured an Enhanced Grunt 9500 | -6/Cetus | Manufactured an Enhanced Grunt 9525 | -6/Cetus | Manufactured an Enhanced Grunt 9617 | -6/Cetus | Discovered new exit (range 15) 9646 | -6/Cetus | Spotted Cetus Guard 9648 | -6/Cetus | Spotted Cetus Guard 9650 | -6/Cetus | Spotted Cetus Guard 9652 | -6/Cetus | Spotted Cetus Guard 9667 | -6/Cetus | Destroyed Cetus Guard 9672 | -6/Cetus | Allies destroyed Cetus Guard 9679 | -6/Cetus | Allies destroyed Cetus Guard 9681 | -6/Cetus | Allies destroyed Cetus Guard 9687 | -6/Cetus | Discovered new exit (range 16) 9691 | -6/Cetus | Extracted ID and sensor layout for unrecognized location from A7's data core 9702 | -6/Cetus | Met Revision 17 9712 | -6/Cetus | Lost 9 allies 9742 | -6/Cetus | Found Prototype Device 9744 | -6/Cetus | Identified Exp. Thermal Shield 9770 | -6/Cetus | System corruption reached 30% 9846 | -6/Cetus | Entered Factory 9846 | -5/Factory | Evolved 2 slots: Utility x2 9962 | -5/Factory | Build established: Scavenger-Tank 11268 | -5/Factory | Discovered new exit (range 5) 11346 | -5/Factory | First assault squad dispatched 11350 | -5/Factory | Entered Upper Caves 11506 | -5/Upper Caves | A Derelict revealed a hidden shortcut to "reach the base" 11512 | -5/Upper Caves | Entered Warlord 11566 | -5/Warlord | System corruption cleaned by Quarantine Array 11667 | -5/Warlord | Build established: Scavenger-Skirmisher 11720 | -5/Warlord | Met Warlord 11735 | -5/Warlord | Warlord's base attacked by MAIN.C 11738 | -5/Warlord | Opened Warlord's prototype stash 11744 | -5/Warlord | Found Prototype Reactor 11756 | -5/Warlord | Found Prototype Device 11756 | -5/Warlord | Identified Thermal Barrier 11780 | -5/Warlord | Found Prototype Processor 11784 | -5/Warlord | Found Prototype Hackware 12016 | -5/Warlord | Met EX-DEC 12026 | -5/Warlord | Found Prototype Energy Cannon 12026 | -5/Warlord | Identified Vortex Driver 12033 | -5/Warlord | Found Prototype Energy Gun 12033 | -5/Warlord | Identified Vortex Rifle 12039 | -5/Warlord | Found Vortex Driver 12042 | -5/Warlord | Found Vortex Driver 12085 | -5/Warlord | Warlord forces counterattacked 12189 | -5/Warlord | Spotted Striker 12202 | -5/Warlord | Destroyed Striker 12254 | -5/Warlord | Spotted Striker 12268 | -5/Warlord | Lost 6 allies 12311 | -5/Warlord | Spotted Executioner 12320 | -5/Warlord | Destroyed Executioner 12324 | -5/Warlord | Build established: Scavenger-Gunner 12342 | -5/Warlord | Spotted Striker 12344 | -5/Warlord | Lost 4 allies 12352 | -5/Warlord | P-70 Sage assimilated allied CJ-6PY(b) 12410 | -5/Warlord | Warlord base infiltrated, sounded retreat 12411 | -5/Warlord | Enhanced Grunt warped into view 12411 | -5/Warlord | Enhanced Grunt warped into view 12411 | -5/Warlord | Enhanced Grunt warped into view 12411 | -5/Warlord | Enhanced Demolisher warped into view 12411 | -5/Warlord | Enhanced Demolisher warped into view 12411 | -5/Warlord | Enhanced Demolisher warped into view 12433 | -5/Warlord | Spotted Executioner 12433 | -5/Warlord | Spotted Executioner 12452 | -5/Warlord | Found Prototype Processor 12457 | -5/Warlord | Spotted Executioner 12459 | -5/Warlord | Spotted Executioner 12463 | -5/Warlord | Spotted Striker 12465 | -5/Warlord | Spotted Executioner 12468 | -5/Warlord | Spotted Executioner 12477 | -5/Warlord | Destroyed Executioner 12481 | -5/Warlord | Destroyed Executioner 12511 | -5/Warlord | Lost 10 allies 12516 | -5/Warlord | Spotted Striker 12517 | -5/Warlord | Spotted Striker 12585 | -5/Warlord | Lost 6 allies 12706 | -5/Warlord | Spotted Striker 12746 | -5/Warlord | Identified Spectral Analyzer 12747 | -5/Warlord | Identified Exp. Core Analyzer 12765 | -5/Warlord | Self-destructed Last Messages --------------- 12750_ P-70 Sage resets L-41 Fighter, system corruption cleaned. 12751_ Antimatter Reactor destroyed. 12753_ Slug penetrates G-50 Soldier. 12753_ Slug penetrates Striker. 12756_ Slug penetrates G-50 Soldier. 12756_ G-50 Soldier destroyed. 12759_ Adv. KE Penetrator destroyed. 12760_ P-80 Master resets I-47 Archangel, system corruption cleaned. 12760_ Chain reaction triggered in Lgt. Antimatter Reactor. 12760_ M6-GOT(m) destroyed. 12761_ Critical hit (Burn: +37). 12761_ Centrium Heavy Treads destroyed. 12762_ Imp. Heat Sink melted. 12762_ P-70 Sage destroyed. 12762_ G-50 Soldier destroyed. 12763_ Critical hit (Impale). 12764_ Thermoblaster severed. Map ----- +----------------------------------------------------+ | | | | | ???????????????????????????????????????? | | ???????????????????????????????????????? | | ???????????????????????????????????????? | | ??????###??????????????????????????????? | | #######X#############??????????????????? | | #??????????????????? | | #??????????????????? | | ################## #??????????????????? | | #????????????????# #??????????????????? | | #????????????????# #??????????????????? | | #????????????????# #??????????????????? | | #????????????????# #??????????????????? | | ???????????????### ##?????????????????? | | ???????????????#; #?????????????????? | | ???##??????????# #?????????????????? | | """"#??????????# ##????????????? ???? | | ""#?##??###### #####?#? ?? ????#?? | | XX""###??####?## ;;###???? ? ? ????? | | "??"#?#??#??#??## ; ##?# ??????###?? | | #?#?##?######?##### ;; #### ? ???##??? | | ?#??#?########?#?##; = ;###?#?? ;#?#?? | | ?######????#?##### ;;%*% ##### ;#????? | | ######?#########?## =%= ;p ;##?#?# | | ##?######??##?#??###; @K! ;;; | | #####?###?###?##### ; % *bl= ;;# ? ### | | ##?#""######???#??###; %gbp ; #?? #? | | ##?#""#??#############; !%= ## ? #? | | ####""#?####?###????### i i ;##? ### | | ####""#?###?##?##?#??###; [ ;## ### | | ##?#""#########?###?#####;;%[ ;#? ##? | | ####""###########?##?#####;; ###? ## | | # "" "###############? ;; =%### ### | | *%=%""% %""""""""""""##?## #;/%/=# #### | | %]!*"" &[%!"""""""""#########=!** ##### | | %=%%!%%[%%!%= ### ### =%!! ##?#? | | =]=[%*=!%[%!% + ## l #?## | | %=*%%!%%%%%[! ^+ #### #### | | ! !%[ %%%%%% #### ##### ##?# | | *=]""=] % """""""""##### ##### ;#?# | | !""!! """""""""#?#?# #?### /;## | | # "" ############??# #### # %; # | | ####""#########?####?##?## ### ; ? | | ####""##??####?########## ### #?? | | ####""##?#?####??#?#??## ### ###? | | ####""#?#######??####??? #### #### | | ?###""#?###?#?###?##### ?#### ##### | | ??##""#?######?######## ###### #?### | | ??#??#?#??#####?####??# ####### ###?? | +----------------------------------------------------+ Best States ------------- Heat Dissipation 67 Coolant Potential 65 Energy Generation 45 Energy Capacity 600 Matter Stores 300 Matter Capacity 300 Sight Range 24 Terrain Scan Range 20 Terrain Scan Density 210 Base Temperature (-) 200 Armor Coverage 450 Resistance: TH 10 Evasion (%) 40 Targeting Accuracy 8 Core Analysis 8 Recoil Reduction 5 Offensive Hacking 10 Item Schematics ----------------- Combat Drone Bay | -7/Data Miner | Free Lgt. Regenerative Plating | -7/Data Miner | Free Cld. Cesium-ion Thruster | -7/Data Miner | Free Exp. Targeting Computer | -7/Data Miner | Free Imp. Heavy Machine Gun | -7/Data Miner | Free Cmb. Gravmag System | -7/Data Miner | Free Adv. Shield Generator | -7/Data Miner | Free Imp. Plasma Cutter | -7/Data Miner | Free Variable Charge Gun | -7/Data Miner | Free Adv. Signal Interpreter | -7/Data Miner | Free Adv. Power Amplifier | -7/Data Miner | Free Imp. Fusion Compressor | -7/Data Miner | Free Robot Schematics ------------------ O-24 Administrator | -7/Data Miner | Free M-28 Smith | -7/Data Miner | Free M-14 Sweeper | -7/Data Miner | Free R-10 Processor | -7/Data Miner | Free M-22 Extractor | -7/Data Miner | Free S-27 Virus | -7/Data Miner | Free Fabricated ------------ Nothing Alien Tech Used ----------------- None Achievements -------------- Revising The Future Challenges ------------ None Game ------ Seed TeslaSystemCoupler Manual? 0 Play Time 01:41:27 Cumulative 403.3 hours Start 2024.05.16 @ 23:25:00 End 2024.05.18 @ 19:59:43 Sessions 11 Manual Loads 0 Difficulty Rogue Special Mode None Game No. 463 Rogue 463 Adventurer 0 Explorer 0 Win Type - Total 34 Types 22/3/8/1/0/0/0/0/0 Lore% 71 Gallery% 81 Achievement% 62 Wizard Run 0 Options --------- Layout 1 ASCII 1 Keyboard 1 Movement Numpad Keybinds 0 Fullscreen 1 Font 24/Smallcaps Map View 50x35 Zoom Use 0% Tactical HUD 1 Map Filters NONE Filters NONE Steam 1 RUN: acfff8b3-9d08-454e-b80d-a3875afa1e00